bitfinex-derivatives/quotes_BNBF0:USTF0_20250904
["timestamp","ask_amount","ask_price","bid_price","bid_amount"]
[1756954441086,2.620247,852.07,850.79,1.30699608]
[1756954441285,2.620247,852.07,850.8,1.30699608]
[1756954441488,2.620247,852.21,850.81,1.30699608]
[1756954441688,2.620247,852.21,850.82,1.30699608]
[1756954441886,2.620247,852.21,850.83,1.30699608]
[1756954442086,2.620247,852.21,850.84,1.30699608]
[1756954442385,2.620247,852.21,850.85,1.30699608]
[1756954442586,2.620247,852.21,850.86,1.30699608]
[1756954442785,2.620247,852.21,850.87,1.30699608]
[1756954443087,2.620247,852.26,850.88,1.30699608]
[1756954443387,2.620247,852.26,850.89,1.30699608]
[1756954443692,3.6683458,852.61,850.9,1.30699608]
[1756954443693,2.620247,852.34,850.9,1.30699608]
[1756954443891,2.620247,852.34,850.91,1.30699608]
[1756954444191,2.620247,852.34,850.92,1.30699608]
[1756954444488,2.620247,852.34,850.93,0.58775561]
[1756954444687,2.620247,852.34,850.94,0.58775561]
[1756954444891,2.620247,852.34,850.59,0.79083967]
[1756954444892,2.620247,852.34,850.95,0.58775561]
[1756954445093,2.620247,852.34,850.96,0.58775561]
[1756954445289,2.620247,852.34,850.97,0.58775561]
[1756954445488,2.620247,852.34,850.98,0.58775561]
[1756954445791,2.620247,852.39,850.99,0.58775561]
[1756954445991,2.620247,852.39,851.0,0.58775561]
[1756954446192,2.620247,852.39,851.01,0.58775561]
[1756954446390,2.620247,852.39,851.02,0.58775561]
[1756954446593,2.620247,852.39,851.03,0.58775561]
[1756954446790,2.620247,852.39,850.58,0.79083967]
[1756954446994,2.620247,852.39,850.59,1.30700441]
[1756954447196,2.620247,852.39,850.6,1.30700441]
[1756954447494,2.620247,852.39,850.61,1.30700441]
[1756954447694,2.620247,852.39,850.62,1.30700441]
[1756954447891,2.620247,852.39,850.63,1.30700441]
[1756954448096,2.620247,852.39,850.64,1.30700441]
[1756954448296,2.620247,852.39,850.65,1.30700441]
[1756954448497,2.620247,852.39,850.66,1.30700441]
[1756954448794,2.620247,852.39,850.67,1.30700441]
[1756954448993,2.620247,852.39,850.68,1.30700441]
[1756954449195,2.620247,852.32,850.69,1.30700441]
[1756954449394,2.620247,852.32,850.7,1.30700441]
[1756954449593,2.620247,852.32,850.71,1.30700441]
[1756954449892,3.6683458,852.69,850.72,1.30700441]
[1756954450097,3.6683458,852.69,850.73,1.30700441]
[1756954450397,5.240494,853.26,850.74,1.30692888]
[1756954450596,5.240494,853.26,850.75,1.30692888]
[1756954450796,5.240494,853.26,850.76,1.30692888]
[1756954451094,5.240494,853.26,850.77,1.30692888]
[1756954451396,2.620247,853.92,850.78,1.30692888]
[1756954451594,2.620247,853.92,850.79,1.30692888]
[1756954451894,2.620247,853.92,850.8,1.30692888]
[1756954452094,2.620247,853.92,850.81,1.30692888]
[1756954452295,2.620247,853.92,850.82,1.30692888]
[1756954452495,2.620247,853.92,850.83,1.30692888]
[1756954452794,2.620247,853.92,850.84,1.30692888]
[1756954453094,2.620247,853.92,850.85,1.30692888]
[1756954453295,2.620247,853.92,850.86,1.30692888]
[1756954453497,2.620247,853.93,850.87,1.30692888]
[1756954453695,2.620247,853.93,850.88,0.71924848]
[1756954453894,2.620247,853.93,850.89,1.3069292]
[1756954454094,2.620247,853.93,850.4,0.79083967]
[1756954454095,2.620247,853.93,850.9,1.3069292]
[1756954454295,2.620247,853.93,850.4,0.79083967]
[1756954454296,2.620247,853.93,850.91,1.3069292]
[1756954454496,2.620247,853.93,850.92,1.3069292]
[1756954454696,2.620247,853.4,850.93,1.3069292]
[1756954454897,2.620247,853.4,850.94,1.3069292]
[1756954455096,2.620247,853.42,850.95,1.3069292]
[1756954455300,2.620247,853.42,850.96,1.3069292]
[1756954455500,2.620247,853.42,850.97,1.3069292]
[1756954455698,2.620247,853.43,850.98,1.3069292]
[1756954456002,2.620247,853.43,850.99,1.3069292]
[1756954456198,2.620247,853.37,851.0,1.3069292]
[1756954456405,2.620247,853.37,851.01,1.3069292]
[1756954456603,2.620247,853.37,851.02,1.3069292]
[1756954456803,2.620247,853.38,851.03,1.3069292]
[1756954457099,2.620247,853.38,851.04,1.3069292]
[1756954457304,2.620247,852.92,851.05,1.3069292]
[1756954457504,2.620247,852.92,851.06,1.3069292]
[1756954457704,2.620247,852.98,851.07,1.3069292]
[1756954457905,2.620247,852.98,851.08,1.3069292]
[1756954458106,2.620247,852.98,851.09,1.3069292]
[1756954458308,2.620247,852.98,851.1,1.3069292]
[1756954458507,2.620247,852.98,851.11,1.3069292]
[1756954458804,2.620247,852.92,851.12,0.71924848]
[1756954459006,2.620247,852.92,851.13,0.71924848]
[1756954459206,2.620247,852.92,850.76,0.79083967]
[1756954459409,2.620247,852.87,850.77,1.3043158]
[1756954459607,2.620247,852.87,850.78,1.3043158]
[1756954459810,3.6683458,853.29,850.79,1.3043158]
[1756954459811,2.620247,852.85,850.79,1.3043158]
[1756954460004,2.620247,852.85,850.8,1.3043158]
[1756954460208,2.620247,852.85,850.81,1.3043158]
[1756954460405,3.6683458,853.29,850.82,1.3043158]
[1756954460605,2.620247,853.66,850.83,1.3043158]
[1756954460904,2.620247,853.66,850.84,1.3043158]
[1756954461105,2.620247,853.66,850.85,1.3043158]
[1756954461304,2.620247,853.54,850.86,1.3043158]
[1756954461507,2.620247,853.54,850.87,1.3043158]
[1756954461708,2.620247,853.54,850.88,1.3043158]
[1756954461912,2.620247,853.54,850.89,1.3043158]
[1756954462110,2.620247,853.54,850.9,1.3043158]
[1756954462410,2.620247,853.55,850.91,1.3043158]
[1756954462716,2.620247,853.55,850.92,1.3043158]
[1756954462916,2.620247,854.07,850.93,1.3043158]
[1756954463113,2.620247,854.07,850.94,1.3043158]
[1756954463312,2.620247,854.07,850.95,1.3043158]
[1756954463515,2.620247,854.07,850.29,0.79083967]
[1756954463516,2.620247,854.08,850.96,1.3043158]
[1756954463713,2.620247,854.08,850.97,1.3043158]
[1756954463913,2.620247,853.92,850.98,0.58751315]
[1756954464112,2.620247,853.92,850.99,0.58751315]
[1756954464312,2.620247,853.92,851.0,0.58751315]
[1756954464514,2.620247,853.88,851.01,0.58751315]
[1756954464814,2.620247,853.88,850.32,0.79083967]
[1756954465013,2.620247,853.88,850.33,1.30338145]
[1756954465217,2.620247,853.88,850.34,1.30338145]
[1756954465415,2.620247,853.89,850.35,1.30338145]
[1756954465613,2.620247,853.89,850.36,1.30338145]
[1756954465816,2.620247,853.89,850.37,1.30338145]
[1756954466018,2.620247,853.85,850.38,1.30338145]
[1756954466218,2.620247,853.85,850.39,1.30338145]
[1756954466520,2.620247,853.76,850.4,1.30338145]
[1756954466719,2.620247,853.76,850.41,1.30338145]
[1756954467019,2.620247,853.76,850.42,1.30338145]
[1756954467218,2.620247,853.76,850.43,1.30338145]
[1756954467421,2.620247,853.76,850.44,1.30338145]
[1756954467714,2.620247,853.76,850.45,1.30338145]
[1756954467915,2.620247,853.76,850.46,1.30338145]
[1756954468119,2.620247,853.76,850.47,1.30338145]
[1756954468319,2.620247,853.76,850.48,1.30338145]
[1756954468519,2.620247,853.76,850.49,1.30338145]
[1756954468719,2.620247,853.65,850.5,1.30338145]
[1756954469016,2.620247,853.65,850.51,1.30338145]
[1756954469318,2.620247,853.65,850.52,1.30338145]
[1756954469515,2.620247,853.65,850.53,1.30338145]
[1756954469721,2.620247,853.57,850.54,1.30338145]
[1756954469919,2.620247,853.57,850.55,1.30338145]
[1756954470121,2.620247,853.57,850.56,1.30338145]
[1756954470317,2.620247,853.57,850.57,1.30338145]
[1756954470521,2.620247,853.57,850.58,1.30338145]
[1756954470722,2.620247,853.58,850.59,1.30338145]
[1756954470920,2.620247,853.58,850.6,1.30338145]
[1756954471120,2.620247,853.52,850.61,1.30338145]
[1756954471317,2.620247,853.52,850.62,1.30338145]
[1756954471519,2.620247,853.52,850.63,1.30338145]
[1756954471719,2.620247,853.52,850.34,0.79083967]
[1756954471720,2.620247,853.45,850.64,1.30338145]
[1756954471922,2.620247,853.45,850.65,1.30338145]
[1756954472120,2.620247,853.45,850.66,1.30338145]
[1756954472324,2.620247,853.39,850.67,1.30338145]
[1756954472624,2.620247,853.39,850.68,1.30338145]
[1756954472923,2.620247,853.39,850.69,1.30338145]
[1756954473125,2.620247,853.39,850.7,1.30338145]
[1756954473322,2.620247,853.39,850.71,1.30338145]
[1756954473522,2.620247,853.39,850.72,1.30338145]
[1756954473725,2.620247,853.39,850.73,1.30338145]
[1756954473924,2.620247,853.39,850.74,1.30338145]
[1756954474123,2.620247,853.39,850.75,1.30338145]
[1756954474423,2.620247,853.39,850.76,1.30338145]
[1756954474622,2.620247,853.39,850.77,1.30338145]
[1756954474824,2.620247,853.39,850.78,1.30338145]
[1756954475022,2.620247,853.39,850.79,1.30338145]
[1756954475223,2.620247,853.39,850.8,1.30338145]
[1756954475425,2.620247,853.38,850.81,1.30338145]
[1756954475626,2.620247,853.38,850.34,0.79083967]
[1756954475627,2.620247,853.38,850.82,1.30338145]
[1756954475824,2.620247,853.37,850.83,1.30338145]
[1756954476025,2.620247,853.37,850.84,1.30338145]
[1756954476229,2.620247,853.37,850.85,1.30338145]
[1756954476431,2.620247,853.37,850.86,1.30338145]
[1756954476628,2.620247,853.37,850.87,0.5875647]
[1756954476831,2.620247,853.36,850.88,0.5875647]
[1756954477028,2.620247,853.36,850.89,0.5875647]
[1756954477329,2.620247,853.36,850.9,0.5875647]
[1756954477529,2.620247,853.36,850.91,0.5875647]
[1756954477727,2.620247,853.36,850.92,0.5875647]
[1756954477932,2.620247,853.36,850.93,0.5875647]
[1756954478232,2.620247,853.36,850.94,0.5875647]
[1756954478427,2.620247,853.36,850.95,0.5875647]
[1756954478632,2.620247,853.36,850.96,0.5875647]
[1756954478932,2.620247,853.36,850.97,0.5875647]
[1756954479126,2.620247,853.36,850.98,0.5875647]
[1756954479331,2.620247,853.36,850.99,0.5875647]
[1756954479630,2.620247,853.36,851.0,0.5875647]
[1756954479828,2.620247,853.36,851.01,0.5875647]
[1756954480128,2.620247,853.36,850.34,0.79083967]
[1756954480329,2.620247,853.36,850.35,1.30327644]
[1756954480629,2.620247,853.35,850.36,1.30327644]
[1756954480833,2.620247,853.35,850.37,1.30327644]
[1756954481034,2.620247,853.35,850.38,1.30327644]
[1756954481229,2.620247,853.35,850.39,1.30327644]
[1756954481230,3.6683458,853.08,850.39,1.30327644]
[1756954481433,3.6683458,853.08,850.4,1.30327644]
[1756954481635,2.620247,852.67,850.41,1.30327644]
[1756954481833,2.620247,852.67,850.42,1.30327644]
[1756954482037,2.620247,852.54,850.43,1.30327644]
[1756954482332,2.620247,852.54,850.44,1.30327644]
[1756954482532,2.620247,852.54,850.45,1.30327644]
[1756954482737,2.620247,852.54,850.46,1.30327644]
[1756954483034,2.620247,852.54,850.47,1.30327644]
[1756954483237,2.620247,852.53,850.48,1.30327644]
[1756954483434,2.620247,852.53,850.49,1.30327644]
[1756954483634,2.620247,852.53,850.5,1.30327644]
[1756954483831,2.620247,852.53,850.51,1.30327644]
[1756954484034,2.620247,852.53,850.52,1.30327644]
[1756954484237,0.20436627,852.03,850.53,1.30327644]
[1756954484436,0.20436627,852.03,850.54,1.30327644]
[1756954484636,0.20436627,852.03,850.55,1.30327644]
[1756954484839,0.20436627,852.03,850.56,1.30327644]
[1756954485138,0.20436627,852.03,850.57,1.30327644]
[1756954485338,0.20436627,852.03,850.58,1.30327644]
[1756954485534,0.20436627,852.03,850.59,1.30327644]
[1756954485738,0.20436627,852.03,850.6,1.30327644]
[1756954485936,0.20436627,852.03,850.61,1.30327644]
[1756954486134,0.20436627,852.03,850.62,1.30327644]
[1756954486439,0.20436627,852.03,850.63,1.30327644]
[1756954486740,0.20436627,852.03,850.64,1.30327644]
[1756954486939,0.20436627,852.03,850.65,1.30327644]
[1756954487239,0.20436627,852.03,850.66,1.30327644]
[1756954487539,0.20436627,852.03,850.67,1.30327644]
[1756954487740,0.20436627,852.03,850.68,1.30327644]
[1756954487937,0.20436627,852.03,850.69,1.30327644]
[1756954488140,0.20436627,852.03,850.7,1.30327644]
[1756954488439,0.20436627,852.03,850.71,1.30327644]
[1756954488637,0.20436627,852.03,850.72,1.30327644]
[1756954488840,0.20436627,852.03,850.73,1.30327644]
[1756954489043,0.20436627,852.03,850.74,0.58762265]
[1756954489343,0.20436627,852.03,850.75,0.58762265]
[1756954489640,0.20436627,852.03,850.76,0.58762265]
[1756954489841,0.20436627,852.03,850.77,0.58762265]
[1756954490038,0.20436627,852.03,850.78,0.58762265]
[1756954490241,0.20436627,852.03,850.79,0.58762265]
[1756954490442,0.20436627,852.03,850.8,0.58762265]
[1756954490640,0.20436627,852.03,850.81,0.58762265]
[1756954490943,0.20436627,852.03,850.82,0.58762265]
[1756954491142,0.20436627,852.03,850.83,1.30425091]
[1756954491342,0.20436627,852.03,850.84,1.30425091]
[1756954491638,0.20436627,852.03,850.85,1.30425091]
[1756954491841,0.20436627,852.03,850.86,1.30425091]
[1756954492042,0.20436627,852.03,850.87,1.30421678]
[1756954492338,0.20436627,852.03,850.88,1.30421678]
[1756954492542,0.20436627,852.03,850.89,1.30421678]
[1756954492739,0.20436627,852.03,850.9,1.30421678]
[1756954492940,0.20436627,852.03,850.91,1.30421678]
[1756954493138,0.20436627,852.03,850.92,1.30421678]
[1756954493343,0.20436627,852.03,850.93,1.30421678]
[1756954493545,0.20436627,852.03,850.94,1.30421678]
[1756954493840,0.20436627,852.03,850.95,1.30421678]
[1756954494039,0.20436627,852.03,850.96,1.30421678]
[1756954494240,0.20436627,852.03,850.97,1.30421678]
[1756954494442,0.20436627,852.03,850.98,1.30421678]
[1756954494640,0.20436627,852.03,850.99,1.30421678]
[1756954494844,0.20436627,852.03,851.0,1.30421678]
[1756954495042,0.20436627,852.03,851.01,1.30421678]
[1756954495338,0.20436627,852.03,851.02,1.30421678]
[1756954495641,0.20436627,852.03,851.03,1.30421678]
[1756954495844,0.20436627,852.03,851.04,1.30421678]
[1756954496139,0.20436627,852.03,851.05,1.30421678]
[1756954496344,0.20436627,852.03,851.06,1.30421678]
[1756954496541,0.20436627,852.03,851.07,1.30421678]
[1756954496738,0.20436627,852.03,851.08,1.30421678]
[1756954496942,0.20436627,852.03,851.09,1.30421678]
[1756954497145,0.20436627,852.03,851.1,1.30421678]
[1756954497344,0.20436627,852.03,851.11,1.30421678]
[1756954497639,0.20436627,852.03,851.12,1.30421678]
[1756954497839,0.20436627,852.03,851.13,1.30421678]
[1756954498044,0.20436627,852.03,851.14,1.30421678]
[1756954498240,0.20436627,852.03,851.15,1.30421678]
[1756954498544,0.20436627,852.03,851.16,1.30421678]
[1756954498745,0.20436627,852.03,851.17,0.58758852]
[1756954498940,0.20436627,852.03,850.67,0.79083967]
[1756954499239,0.20436627,852.03,850.68,1.30459711]
[1756954499439,0.20436627,852.03,850.69,1.30459711]
[1756954499641,0.20436627,852.03,850.7,1.30459711]
[1756954499841,0.20436627,852.03,850.71,1.30459711]
[1756954500045,0.20436627,852.03,850.72,1.30459711]
[1756954500241,0.20436627,852.03,850.73,1.30459711]
[1756954500441,0.20436627,852.03,850.74,1.30459711]
[1756954500646,0.20436627,852.03,850.75,1.30459711]
[1756954500843,0.20436627,852.03,850.76,1.30459711]
[1756954501044,0.20436627,852.03,850.77,1.30459711]
[1756954501243,0.20436627,852.03,850.78,1.30459711]
[1756954501449,0.20436627,852.03,850.79,1.30459711]
[1756954501647,0.20436627,852.03,850.8,1.30459711]
[1756954501846,0.20436627,852.03,850.81,1.30459711]
[1756954502046,0.20436627,852.03,850.82,1.30459711]
[1756954502247,0.20436627,852.03,850.83,1.30459711]
[1756954502548,0.20436627,852.03,850.84,1.30459711]
[1756954502747,0.20436627,852.03,850.85,1.30459711]
[1756954502946,0.20436627,852.03,850.86,1.30459711]
[1756954503148,0.20436627,852.03,850.87,1.30459711]
[1756954503350,0.20436627,852.03,850.88,1.30459711]
[1756954503648,0.20436627,852.03,850.89,1.30459711]
[1756954503846,0.20436627,852.03,850.9,1.30459711]
[1756954504044,0.20436627,852.03,850.91,1.30459711]
[1756954504250,0.20436627,852.03,850.92,1.30459711]
[1756954504545,0.20436627,852.03,850.93,1.30459711]
[1756954504845,0.20436627,852.03,850.94,1.30459711]
[1756954505148,0.20436627,852.03,850.95,1.30459711]
[1756954505349,0.20436627,852.03,850.96,1.30459711]
[1756954505549,0.20436627,852.03,850.97,1.30459711]
[1756954505743,0.20436627,852.03,850.98,1.30459711]
[1756954505944,0.20436627,852.03,850.99,1.30459711]
[1756954506148,0.20436627,852.03,851.0,1.30459711]
[1756954506345,0.20436627,852.03,851.01,1.30459711]
[1756954506550,0.20436627,852.03,851.02,1.30459711]
[1756954506844,0.20436627,852.03,851.03,1.30459711]
[1756954507046,0.20436627,852.03,851.04,1.30459711]
[1756954507249,0.20436627,852.03,851.05,1.30459711]
[1756954507449,0.20436627,852.03,850.1,0.20436627]
[1756954507450,0.20436627,852.03,851.06,1.30459711]
[1756954507650,0.20436627,852.03,851.07,1.30459711]
[1756954507946,0.20436627,852.03,850.1,0.20436627]
[1756954507947,0.20436627,852.03,851.08,1.30459711]
[1756954508150,0.20436627,852.03,851.09,1.30459711]
[1756954508450,0.20436627,852.03,851.1,1.30459711]
[1756954508652,0.20436627,852.03,851.11,1.30459711]
[1756954508947,0.20436627,852.03,851.12,1.30459711]
[1756954509150,0.20436627,852.03,851.13,1.30459711]
[1756954509349,0.20436627,852.03,851.14,1.30459711]
[1756954509548,0.20436627,852.03,850.83,0.79083967]
[1756954509549,0.20436627,852.03,851.15,1.30459711]
[1756954509750,0.20436627,852.03,851.16,1.30459711]
[1756954510050,0.20436627,852.03,851.17,1.30459711]
[1756954510250,0.20436627,852.03,851.18,1.30459711]
[1756954510546,0.20436627,852.03,851.19,1.30459711]
[1756954510751,0.20436627,852.03,851.2,0.58758846]
[1756954510951,0.20436627,852.03,851.21,0.58758846]
[1756954511148,0.20436627,852.03,851.22,0.58758846]
[1756954511349,0.20436627,852.03,851.23,0.58758846]
[1756954511550,0.20436627,852.03,851.24,0.58758846]
[1756954511747,0.20436627,852.03,851.25,0.58758846]
[1756954512052,0.20436627,852.03,850.86,0.79083967]
[1756954512252,0.20436627,852.03,850.87,2.09654066]
[1756954512448,0.20436627,852.03,850.88,1.30570099]
[1756954512651,0.20436627,852.03,850.89,1.30570099]
[1756954512850,0.20436627,852.03,850.9,1.30570099]
[1756954513052,0.20436627,852.03,850.91,1.30570099]
[1756954513254,0.20436627,852.03,850.92,1.30570099]
[1756954513453,0.20436627,852.03,850.93,1.30570099]
[1756954513753,0.20436627,852.03,850.94,1.30570099]
[1756954513947,0.20436627,852.03,850.95,1.30570099]
[1756954514149,0.20436627,852.03,850.96,1.30570099]
[1756954514354,0.20436627,852.03,850.97,1.30570099]
[1756954514553,0.20436627,852.03,850.98,1.30570099]
[1756954514749,0.20436627,852.03,850.99,1.30570099]
[1756954514954,0.20436627,852.03,851.0,1.30570099]
[1756954515251,0.20436627,852.03,851.01,1.30570099]
[1756954515554,0.20436627,852.03,851.02,1.30570099]
[1756954515752,0.20436627,852.03,851.03,1.30570099]
[1756954515949,0.20436627,852.03,851.04,1.30570099]
[1756954516253,0.20436627,852.03,851.05,1.30570099]
[1756954516449,0.20436627,852.03,851.06,1.30570099]
[1756954516649,0.20436627,852.03,851.07,1.30570099]
[1756954516849,0.20436627,852.03,851.08,1.30570099]
[1756954517052,0.20436627,852.03,851.09,1.30570099]
[1756954517252,0.20436627,852.03,851.1,1.30570099]
[1756954517452,0.20436627,852.03,851.11,1.30570099]
[1756954517753,0.20436627,852.03,851.12,1.30570099]
[1756954517954,0.20436627,852.03,851.13,1.30570099]
[1756954518252,0.20436627,852.03,851.14,1.30570099]
[1756954518453,0.20436627,852.03,851.15,1.30570099]
[1756954518651,0.20436627,852.03,851.16,1.30570099]
[1756954518849,0.20436627,852.03,851.17,1.30570099]
[1756954519150,0.20436627,852.03,851.18,1.30570099]
[1756954519352,0.20436627,852.03,851.19,1.30570099]
[1756954519548,0.20436627,852.03,851.2,1.30570099]
[1756954519753,0.20436627,852.03,851.21,0.58754754]
[1756954520047,0.20436627,852.03,851.22,0.58754754]
[1756954520251,0.20436627,852.03,851.23,0.58754754]
[1756954520457,0.20436627,852.03,851.24,0.58754754]
[1756954520750,0.20436627,852.03,851.25,0.58754754]
[1756954521050,0.20436627,852.03,851.26,0.58754754]
[1756954521255,0.20436627,852.03,851.27,0.58754754]
[1756954521457,0.20436627,852.03,851.28,0.58754754]
[1756954521753,0.20436627,852.03,851.29,0.58754754]
[1756954521957,0.20436627,852.03,851.3,0.58754754]
[1756954522251,0.20436627,852.03,851.31,0.58754754]
[1756954522456,0.20436627,852.03,851.32,0.58754754]
[1756954522654,0.20436627,852.03,850.92,0.79083967]
[1756954522853,0.20436627,852.03,850.93,1.30558773]
[1756954523058,0.20436627,852.03,850.94,1.30558773]
[1756954523254,0.20436627,852.03,850.95,1.30558773]
[1756954523459,0.20436627,852.03,850.96,1.30558773]
[1756954523654,0.20436627,852.03,850.97,1.30558773]
[1756954523854,0.20436627,852.03,850.98,1.30558773]
[1756954524054,0.20436627,852.03,850.99,1.30558773]
[1756954524354,0.20436627,852.03,851.0,1.30558773]
[1756954524553,0.20436627,852.03,851.01,1.30558773]
[1756954524754,0.20436627,852.03,851.02,1.30556763]
[1756954524954,0.20436627,852.03,851.03,1.30556763]
[1756954525159,0.20436627,852.03,851.04,1.30556763]
[1756954525359,0.20436627,852.03,851.05,1.30556763]
[1756954525654,0.20436627,852.03,851.06,1.30556763]
[1756954525958,0.20436627,852.03,851.07,1.30556763]
[1756954526158,0.20436627,852.03,851.08,1.30556763]
[1756954526358,0.20436627,852.03,851.09,1.30556763]
[1756954526552,0.20436627,852.03,851.1,1.30556763]
[1756954526757,0.20436627,852.03,851.11,1.30556763]
[1756954526956,0.20436627,852.03,851.12,1.30556763]
[1756954527155,0.20436627,852.03,851.13,1.30556763]
[1756954527355,0.20436627,852.03,851.14,1.30556763]
[1756954527556,0.20436627,852.03,851.15,1.30556763]
[1756954527754,0.20436627,852.03,851.16,1.30556763]
[1756954527956,0.20436627,852.03,851.17,1.30556763]
[1756954528256,0.20436627,852.03,851.18,1.30556763]
[1756954528461,0.20436627,852.03,851.19,1.30556763]
[1756954528661,0.20436627,852.03,851.2,1.30556763]
[1756954528858,0.20436627,852.03,851.21,0.58754841]
[1756954529159,0.20436627,852.03,851.22,0.58754841]
[1756954529359,0.20436627,852.03,851.23,0.58754841]
[1756954529559,0.20436627,852.03,851.24,0.58754841]
[1756954529761,0.20436627,852.03,851.25,0.58754841]
[1756954529963,0.20436627,852.03,851.26,0.58754841]
[1756954530160,0.20436627,852.03,851.27,0.58754841]
[1756954530364,0.20436627,852.03,851.28,0.58754841]
[1756954530567,0.20436627,852.03,851.29,0.58754841]
[1756954530765,0.20436627,852.03,851.3,0.58754841]
[1756954530963,0.20436627,852.03,851.31,0.58754841]
[1756954531165,0.20436627,852.03,851.32,0.58754841]
[1756954531364,0.20436627,852.03,851.33,0.58754917]
[1756954531569,0.20436627,852.03,850.84,0.79197429]
[1756954531868,0.20436627,852.03,850.85,1.30551384]
[1756954532070,0.20436627,852.03,850.86,1.30551384]
[1756954532269,0.20436627,852.03,850.87,1.30551384]
[1756954532472,0.20436627,852.03,850.88,1.30551384]
[1756954532667,0.20436627,852.03,850.89,1.30551384]
[1756954532868,0.20436627,852.03,850.9,1.30551384]
[1756954533069,0.20436627,852.03,850.91,1.30551384]
[1756954533267,0.20436627,852.03,850.92,1.30551384]
[1756954533571,0.20436627,852.03,850.93,1.30551384]
[1756954533865,0.20436627,852.03,850.94,1.30551384]
[1756954534068,0.20436627,852.03,850.95,1.30551384]
[1756954534268,0.20436627,852.03,850.96,1.30551384]
[1756954534469,0.20436627,852.03,850.97,1.30551384]
[1756954534668,0.20436627,852.03,850.98,1.30551384]
[1756954534866,0.20436627,852.03,850.99,1.30551384]
[1756954535170,0.20436627,852.03,851.0,1.30551384]
[1756954535366,0.20436627,852.03,851.01,1.30551384]
[1756954535570,0.20436627,852.03,851.02,1.30551384]
[1756954535770,0.20436627,852.03,851.03,1.30551384]
[1756954535968,0.20436627,852.03,851.04,1.30551384]
[1756954536173,0.20436627,852.03,851.05,1.30551384]
[1756954536368,0.20436627,852.03,851.06,1.30552249]
[1756954536568,0.20436627,852.03,851.07,0.58754917]
[1756954536868,0.20436627,852.03,851.08,0.58754917]
[1756954537173,0.20436627,852.03,851.09,1.30546901]
[1756954537369,0.20436627,852.03,850.62,0.79197429]
[1756954537370,0.20436627,852.03,851.1,1.30546901]
[1756954537669,0.20436627,852.03,850.62,0.79197429]
[1756954537670,0.20436627,852.03,851.11,1.30546901]
[1756954537870,0.20436627,852.03,851.12,1.30546901]
[1756954538175,0.20436627,852.03,851.13,1.30546901]
[1756954538471,0.20436627,852.03,851.14,0.58754917]
[1756954538669,0.20436627,852.03,851.15,0.58754917]
[1756954538970,0.20436627,852.03,851.16,0.58754917]
[1756954539168,0.20436627,852.03,851.17,0.58754917]
[1756954539372,0.20436627,852.03,851.18,0.58754917]
[1756954539571,0.20436627,852.03,851.19,0.58754917]
[1756954539775,0.20436627,852.03,851.2,0.58754917]
[1756954539969,0.20436627,852.03,851.21,0.58754917]
[1756954540170,0.20436627,852.03,851.22,0.58754917]
[1756954540374,0.20436627,852.03,851.23,0.58754917]
[1756954540571,0.20436627,852.03,851.24,0.58754917]
[1756954540870,0.20436627,852.03,851.25,0.58754917]
[1756954541175,0.20436627,852.03,851.26,0.58754917]
[1756954541379,0.20436627,852.03,851.27,0.58754917]
[1756954541579,0.20436627,852.03,851.28,0.58754917]
[1756954541875,0.20436627,852.03,851.29,0.58754917]
[1756954542072,0.20436627,852.03,851.3,0.58754917]
[1756954542272,0.20436627,852.03,851.31,0.58754917]
[1756954542578,0.20436627,852.03,851.32,0.58754917]
[1756954542777,0.20436627,852.03,851.33,0.58754917]
[1756954542977,0.20436627,852.03,851.34,0.58754917]
[1756954543177,0.20436627,852.03,851.35,0.58754917]
[1756954543480,0.20436627,852.03,850.7,0.79197429]
[1756954543679,0.20436627,852.03,850.71,2.09757889]
[1756954543875,0.20436627,852.03,850.72,1.3056046]
[1756954544179,0.20436627,852.03,850.83,0.79197429]
[1756954544378,0.20436627,852.03,850.84,1.3056046]
[1756954544578,0.20436627,852.03,850.85,1.3056046]
[1756954544776,0.20436627,852.03,850.86,1.3056046]
[1756954545078,0.20436627,852.03,850.87,1.3056046]
[1756954545374,0.20436627,852.03,850.88,1.3056046]
[1756954545579,0.20436627,852.03,850.89,1.3056046]
[1756954545775,0.20436627,852.03,850.9,1.3056046]
[1756954546075,0.20436627,852.03,850.91,1.3056046]
[1756954546277,0.20436627,852.03,850.92,1.3056046]
[1756954546474,0.20436627,852.03,850.93,1.3056046]
[1756954546773,0.20436627,852.03,850.94,1.3056046]
[1756954546977,0.20436627,852.03,850.95,1.3056046]
[1756954547175,0.20436627,852.03,850.96,1.3056046]
[1756954547473,0.20436627,852.03,850.97,1.3056046]
[1756954547673,0.20436627,852.03,850.98,1.3056046]
[1756954547873,0.20436627,852.03,850.99,1.3056046]
[1756954548080,0.20436627,852.03,851.0,1.3056046]
[1756954548279,0.20436627,852.03,851.01,1.3056046]
[1756954548481,0.20436627,852.03,851.02,1.3056046]
[1756954548680,0.20436627,852.03,851.03,1.3056046]
[1756954548881,0.20436627,852.03,851.04,1.3056046]